bitfinex-derivatives/quotes_SOLF0:USTF0_20220101
["timestamp","ask_amount","ask_price","bid_price","bid_amount"]
[1641016809165,32.85016531,173.27,173.19,35.99609609]
[1641016810862,43.20116796,173.28,173.2,5.34397943]
[1641016811563,32.85016531,173.28,173.19,27.66479]
[1641016811764,4.509,173.28,173.19,27.66479]
[1641016812763,4.509,173.28,173.19,21.10609716]
[1641016814066,29.7872,173.29,173.19,21.10609716]
[1641016814667,43.1994685,173.28,173.2,5.28778656]
[1641016814868,49.4734685,173.28,173.2,5.28778656]
[1641016815267,52.4734685,173.28,173.2,5.28778656]
[1641016815467,52.4734685,173.28,173.16,4.0447059]
[1641016815468,32.85016531,173.24,173.16,4.0447059]
[1641016816368,27.66479,173.23,173.16,4.0447059]
[1641016816568,60.51495531,173.23,173.15,5.28778656]
[1641016816771,65.63995531,173.23,173.15,5.28778656]
[1641016817171,10.34930319,173.22,173.16,4.0447059]
[1641016818373,10.34930319,173.22,173.17,4.0447059]
[1641016819174,32.85016531,173.25,173.18,4.0447059]
[1641016820174,32.85016531,173.24,173.16,4.0447059]
[1641016821380,32.85016531,173.24,173.18,3.0]
[1641016821578,32.85016531,173.24,173.18,4.234]
[1641016821778,10.34930319,173.25,173.18,11.2787059]
[1641016821980,10.34930319,173.25,173.18,8.2787059]
[1641016822381,10.34930319,173.25,173.2,27.66479]
[1641016822579,10.34930319,173.25,173.2,31.7094959]
[1641016822781,32.85016531,173.26,173.2,31.7094959]
[1641016822979,43.1994685,173.28,173.2,31.7094959]
[1641016825782,32.85016531,173.26,173.2,27.66479]
[1641016826383,32.85016531,173.27,173.2,27.66479]
[1641016827184,32.85016531,173.27,173.2,31.7094959]
[1641016827683,32.85016531,173.27,173.2,27.66479]
[1641016828485,60.51495531,173.27,173.2,27.66479]
[1641016828686,32.85016531,173.26,173.2,27.66479]
[1641016829385,43.1994685,173.26,173.2,27.66479]
[1641016830387,10.34930319,173.26,173.2,27.66479]
[1641016831090,10.34930319,173.26,173.2,31.7094959]
[1641016833192,10.34930319,173.26,173.2,4.0447059]
[1641016834093,10.34930319,173.26,173.19,4.0447059]
[1641016834693,10.34930319,173.26,173.19,31.7094959]
[1641016835594,10.34930319,173.26,173.21,3.0]
[1641016835795,32.85016531,173.27,173.19,34.7094959]
[1641016835997,60.51495531,173.3,173.21,4.0447059]
[1641016836194,60.51495531,173.3,173.21,35.0885059]
[1641016836695,60.51495531,173.3,173.22,5.28775313]
[1641016836896,10.34092321,173.29,173.22,5.28775313]
[1641016837496,10.34092321,173.29,173.21,35.0885059]
[1641016838597,4.09649323,173.22,173.21,35.0885059]
[1641016838798,4.09649323,173.22,173.21,4.0447059]
[1641016839199,6.027,173.23,173.19,4.0447059]
[1641016840000,6.027,173.23,173.18,4.0447059]
[1641016841300,6.027,173.23,173.19,4.0447059]
[1641016842701,10.34092321,173.25,173.19,4.0447059]
[1641016844400,10.34092321,173.25,173.2,4.0447059]
[1641016845206,10.34092321,173.25,173.19,4.0447059]
[1641016848809,10.34092321,173.25,173.18,4.0447059]
[1641016849013,16.76392321,173.25,173.18,4.0447059]
[1641016850812,27.66479,173.23,173.18,4.0447059]
[1641016851214,27.66479,173.23,173.17,5.28699087]
[1641016851814,13.34092321,173.22,173.17,5.28699087]
[1641016852014,13.34092321,173.22,173.13,12.3245713]
[1641016852414,19.11143015,173.22,173.13,12.3245713]
[1641016852814,19.11143015,173.22,173.12,12.3245713]
[1641016852815,27.66479,173.18,173.12,12.3245713]
[1641016853017,32.78879,173.18,173.12,12.3245713]
[1641016854016,32.78879,173.18,173.09,39.9893613]
[1641016855717,32.78879,173.18,173.09,12.3245713]
[1641016856517,10.3575077,173.17,173.08,12.3245713]
[1641016857521,10.3575077,173.17,173.07,12.3245713]
[1641016858923,27.66479,173.11,173.07,12.3245713]
[1641016859423,10.3575077,173.17,173.07,12.3245713]
[1641016859822,32.78879,173.18,173.07,12.3245713]
[1641016860423,10.35863953,173.17,173.07,12.3245713]
[1641016860926,27.66479,173.14,173.07,12.3245713]
[1641016861125,32.60579,173.14,173.07,12.3245713]
[1641016862327,27.66479,173.14,173.07,12.3245713]
[1641016863628,27.66479,173.14,173.04,32.6656]
[1641016863828,27.66479,173.14,173.04,29.6656]
[1641016864028,32.29979,173.14,173.04,29.6656]
[1641016865429,32.29979,173.14,173.07,12.3245713]
[1641016867731,4.635,173.14,173.07,12.3245713]
[1641016868134,4.635,173.14,173.08,12.3245713]
[1641016868735,4.635,173.14,173.07,12.3245713]
[1641016868934,10.35870248,173.17,173.07,39.9893613]
[1641016869134,6.115,173.14,173.07,39.9893613]
[1641016869638,6.115,173.14,173.08,18.3723307]
[1641016871238,33.77979,173.14,173.08,18.3723307]
[1641016872839,33.77979,173.14,173.07,39.9893613]
[1641016873037,27.21732774,173.14,173.07,39.9893613]
[1641016873239,27.21732774,173.14,173.08,18.3722156]
[1641016873638,36.32879,173.18,173.08,18.3722156]
[1641016873839,33.32879,173.18,173.09,32.1285]
[1641016874642,10.35697562,173.17,173.09,44.4530713]
[1641016876143,10.35697562,173.17,173.09,32.1285]
[1641016877451,27.66479,173.14,173.09,32.1285]
[1641016877649,33.63679,173.14,173.09,32.1285]
[1641016878748,5.972,173.14,173.09,32.1285]
[1641016878952,36.32879,173.18,173.09,32.1285]
[1641016879349,10.35876127,173.17,173.09,32.1285]
[1641016879551,27.66479,173.15,173.09,32.1285]
[1641016882550,33.43762879,173.15,173.08,12.3245713]
[1641016882751,3.0,173.14,173.08,12.3245713]
[1641016882952,4.506,173.14,173.08,12.3245713]
[1641016883251,14.86661814,173.14,173.06,12.3245713]
[1641016883654,27.66479,173.11,173.06,12.3245713]
[1641016884052,27.66479,173.11,173.04,12.3245713]
[1641016884953,27.66479,173.11,173.04,18.37151328]
[1641016885453,27.66479,173.08,173.04,18.37151328]
[1641016885653,31.93979,173.08,173.04,18.37151328]
[1641016886357,31.93979,173.08,173.04,12.3245713]
[1641016886555,31.93979,173.08,173.03,42.5800713]
[1641016890360,31.93979,173.08,173.04,18.37149294]
[1641016891562,31.93979,173.08,173.03,42.5800713]
[1641016892261,31.93979,173.08,173.04,1.2420302]
[1641016893462,31.93979,173.08,173.04,19.61358441]
[1641016894466,27.66479,173.11,173.04,19.61358441]
[1641016895166,27.66479,173.11,173.05,12.3245713]
[1641016897869,27.66479,173.11,173.04,19.61358441]
[1641016899975,27.66479,173.08,173.04,19.61358441]
[1641016900176,33.80579,173.08,173.04,19.61358441]
[1641016901379,33.80579,173.08,173.04,1.2420302]
[1641016902178,36.80579,173.08,173.04,1.2420302]
[1641016902380,3.0,173.07,173.03,12.3245713]
[1641016902779,3.0,173.06,173.03,12.3245713]
[1641016903181,3.0,173.06,173.0,12.3245713]
[1641016903482,31.3467,173.07,173.0,12.3245713]
[1641016903883,31.3467,173.07,172.98,12.3245713]
[1641016904083,27.66479,173.02,172.98,12.3245713]
[1641016904283,41.71396169,173.07,172.98,12.3245713]
[1641016904683,31.3467,173.07,172.98,12.3245713]
[1641016905285,31.3467,173.07,172.99,12.3245713]
[1641016908685,31.3467,173.07,173.0,12.3245713]
[1641016911086,31.3467,173.07,172.99,12.3245713]
[1641016911287,35.9187,173.07,172.99,12.3245713]
[1641016912788,35.9187,173.07,173.03,4.10345646]
[1641016912988,4.572,173.07,173.03,4.10345646]
[1641016913589,33.4401293,173.08,173.03,4.10345646]
[1641016914390,27.66479,173.08,173.03,4.10345646]
[1641016915292,27.66479,173.08,173.04,4.10345646]
[1641016915492,5.77550608,173.07,173.04,4.10345646]
[1641016915693,10.38950608,173.07,173.04,4.10345646]
[1641016915891,10.38950608,173.07,173.03,4.10345646]
[1641016916092,4.614,173.07,173.03,4.10345646]
[1641016917895,14.98059866,173.07,173.03,4.10345646]
[1641016918494,4.614,173.07,173.03,4.10345646]
[1641016918695,5.77617329,173.05,173.03,4.10345646]
[1641016919296,5.77617329,173.05,173.02,4.10345646]
[1641016919495,14.98097815,173.07,173.02,4.10345646]
[1641016920396,27.66479,173.03,173.02,4.10345646]
[1641016922400,30.1419,173.1,173.01,12.3245713]
[1641016922603,30.1419,173.1,173.02,30.1004]
[1641016923000,30.1419,173.1,173.06,4.10267813]
[1641016923200,5.77400543,173.12,173.06,4.10267813]
[1641016924100,5.77400543,173.12,173.05,4.10267813]
[1641016924300,12.38500543,173.12,173.05,4.10267813]
[1641016924501,27.66479,173.1,173.05,4.10267813]
[1641016926704,27.66479,173.1,173.04,4.10267813]
[1641016928009,4.0951918,173.06,173.04,4.10267813]
[1641016929608,33.36979,173.07,173.05,4.10267813]
[1641016929808,27.66479,173.07,173.05,4.10267813]
[1641016931112,27.66479,173.07,173.06,4.10267813]
[1641016931915,27.66479,173.07,173.05,4.10267813]
[1641016932110,33.00179,173.07,173.05,4.10267813]
[1641016932512,33.00179,173.07,173.03,4.10267813]
[1641016933520,5.337,173.07,173.03,4.10267813]
[1641016933713,27.66479,173.1,173.03,4.10267813]
[1641016934112,27.66479,173.1,173.04,4.10267813]
[1641016934314,32.85016531,173.12,173.04,4.10267813]
[1641016934513,32.85016531,173.12,173.04,9.29667813]
[1641016935515,32.85016531,173.12,173.04,5.194]
[1641016935714,27.66479,173.13,173.08,4.10215728]
[1641016936718,27.66479,173.13,173.06,31.7005]
[1641016936918,34.24179,173.13,173.07,4.10233162]
[1641016937118,10.3625592,173.12,173.07,4.10233162]
[1641016937718,34.24179,173.13,173.08,4.10227085]
[1641016938524,34.24179,173.13,173.06,31.7005]
[1641016939022,3.0,173.12,173.06,31.7005]
[1641016939222,13.36350216,173.12,173.06,35.80309356]
[1641016939622,10.36350216,173.12,173.06,35.80309356]
[1641016940021,10.36350216,173.12,173.06,4.10259356]
[1641016940222,10.36350216,173.12,173.02,12.3245713]
[1641016940423,3.0,173.11,173.03,31.0519]
[1641016940826,27.66479,173.1,173.03,31.0519]
[1641016941026,27.66479,173.1,173.06,4.10269316]
[1641016941427,27.66479,173.1,173.03,31.0519]
[1641016942225,27.66479,173.1,173.06,4.10269888]
[1641016942826,27.66479,173.1,173.04,1.24191826]
[1641016944030,30.66479,173.1,173.06,4.10269388]
[1641016944530,10.36544821,173.09,173.04,5.34500871]
[1641016944729,16.42044821,173.09,173.04,5.34500871]
[1641016944930,27.66479,173.07,173.04,5.34500871]
[1641016945533,27.66479,173.07,173.01,1.24187826]
[1641016946536,27.66479,173.07,173.04,4.10308934]
[1641016947234,27.66479,173.07,173.02,1.24187826]
[1641016947838,30.66479,173.07,173.02,1.24187826]
[1641016948040,5.77617329,173.05,173.04,4.10330559]
[1641016948237,12.11717329,173.05,173.04,4.10330559]
[1641016948535,6.341,173.05,173.04,4.10330559]
[1641016948936,34.00579,173.05,173.04,4.10330559]
[1641016949138,34.00579,173.05,173.01,4.10393875]
[1641016949937,42.78213011,173.05,172.97,12.3245713]
[1641016950136,42.78213011,173.05,172.93,60.51495531]
[1641016950137,42.78213011,173.05,173.0,4.1040405]
[1641016950539,39.78213011,173.05,173.0,4.1040405]
[1641016950739,39.78213011,173.05,172.98,1.24179412]
[1641016951438,42.78213011,173.05,172.98,1.24179412]
[1641016951642,42.78213011,173.05,173.0,4.10412279]
[1641016952342,10.36919717,173.04,172.99,4.10417551]
[1641016953043,10.36919717,173.04,172.97,29.9557]
[1641016953242,10.36919717,173.04,173.0,4.10416459]
[1641016953844,27.66479,173.05,173.02,4.10359437]
[1641016954348,27.66479,173.07,173.02,4.10359437]
[1641016954546,27.66479,173.07,172.98,22.61367224]
[1641016954547,27.66479,173.07,173.03,4.10345456]
[1641016954949,27.66479,173.1,173.03,4.10345456]
[1641016955547,27.66479,173.1,173.05,4.10309884]
[1641016956246,27.66479,173.1,173.03,1.24182855]
[1641016956948,27.66479,173.1,173.06,4.10287339]
[1641016957746,27.66479,173.12,173.03,1.24190199]
[1641016958348,3.0,173.04,173.03,1.24190199]
[1641016958548,7.355,173.04,173.03,1.24190199]
[1641016958748,4.355,173.04,173.02,12.3245713]
[1641016958950,7.355,173.04,173.03,18.3713974]
[1641016959350,7.355,173.04,172.99,32.85016531]
[1641016959551,3.0,173.0,172.99,32.85016531]
[1641016959749,3.0,173.0,172.91,5.77450556]
[1641016959750,9.252,173.0,172.91,5.77450556]
[1641016960552,9.252,173.0,172.92,1.24055697]
[1641016961052,27.66479,172.99,172.92,1.24055697]
[1641016961452,25.7218594,172.99,172.92,1.24055697]
[1641016961851,4.10478447,172.97,172.92,1.24055697]
[1641016969061,4.10478447,172.98,172.92,1.24055697]
[1641016971166,27.66479,172.97,172.92,1.24055697]
[1641016975072,30.66479,172.97,172.92,1.24055697]
[1641016975270,3.0,172.96,172.92,1.24055697]
[1641016975473,11.52478447,172.96,172.92,1.24055697]
[1641016975770,3.0,172.95,172.92,1.24055697]
[1641016975971,11.52478447,172.96,172.92,1.24055697]
[1641016976171,3.0,172.95,172.92,1.24055697]
[1641016976376,4.10478447,172.93,172.88,1.24055697]
[1641016977075,4.10478447,172.93,172.85,32.85016531]
[1641016977277,43.52104462,172.96,172.84,31.7652]
[1641016977278,27.66479,172.89,172.84,31.7652]
[1641016977476,27.66479,172.89,172.82,3.0]
[1641016979077,27.66479,172.89,172.83,1.22682857]
[1641016981078,27.66479,172.89,172.81,30.66479]
[1641016981980,27.66479,172.89,172.82,1.22681373]
[1641016982984,27.66479,172.89,172.82,4.22681373]
[1641016983987,27.66479,172.89,172.83,34.07697904]
[1641016984486,3.0,172.87,172.83,34.07697904]
[1641016984687,8.191,172.87,172.83,34.07697904]
[1641016984887,5.191,172.87,172.83,34.07697904]
[1641016985088,9.29578447,172.87,172.81,7.27185687]
[1641016985288,27.66479,172.86,172.81,7.27185687]
[1641016985891,9.29578447,172.87,172.81,7.27185687]
[1641016986286,4.10478447,172.86,172.78,65.31606531]
[1641016986488,4.10478447,172.86,172.78,68.31606531]
[1641016986688,4.10478447,172.86,172.78,65.31606531]
[1641016987094,9.29578447,172.87,172.8,32.85016531]
[1641016987889,9.29578447,172.87,172.8,7.27185687]
[1641016988589,5.191,172.87,172.8,40.12202218]
[1641016988789,4.10478447,172.88,172.8,40.12202218]
[1641016989791,31.76957447,172.89,172.85,12.32044594]
[1641016989992,3.0,172.88,172.85,12.32044594]
[1641016990192,31.76957447,172.89,172.85,12.32044594]
[1641016991195,27.66479,172.86,172.85,12.32044594]
[1641016991398,5.025,172.86,172.83,12.32044594]
[1641016992395,5.025,172.86,172.84,12.32044594]
[1641016993098,5.025,172.86,172.83,12.32044594]
[1641016993296,27.66479,172.85,172.83,12.32044594]
[1641016993897,33.47679,172.85,172.83,12.32044594]
[1641016995500,33.47679,172.85,172.82,12.32044594]
[1641016997202,27.66479,172.83,172.82,12.32044594]
[1641016997403,27.66479,172.83,172.79,11.7589302]
[1641016997404,31.76957447,172.83,172.79,11.7589302]
[1641017001108,27.66479,172.83,172.75,1.22681373]
[1641017002908,27.66479,172.83,172.77,3.0]
[1641017003410,27.66479,172.83,172.76,3.0]
[1641017003811,27.66479,172.83,172.75,1.22681373]
[1641017004311,27.66479,172.83,172.75,4.22681373]
[1641017004912,27.66479,172.83,172.76,1.22681373]
[1641017005313,27.66479,172.83,172.76,4.22681373]
[1641017005711,27.66479,172.83,172.76,1.22681373]
[1641017006813,27.66479,172.83,172.76,4.22681373]
[1641017007112,27.66479,172.83,172.76,37.07697904]
[1641017007914,27.66479,172.83,172.77,1.22681373]
[1641017008714,27.66479,172.83,172.76,34.07697904]
[1641017009318,27.66479,172.83,172.76,32.85016531]
[1641017010420,27.66479,172.83,172.81,4.1089436]
[1641017011022,27.66479,172.83,172.8,4.1089436]
[1641017011221,30.66479,172.83,172.8,4.1089436]
[1641017012219,27.66479,172.83,172.8,4.1089436]
[1641017014522,27.66479,172.83,172.77,4.1089436]
[1641017019436,27.66479,172.8,172.77,4.1089436]
[1641017019635,31.99779,172.8,172.77,4.1089436]
[1641017022638,31.99779,172.8,172.76,4.09437413]
[1641017023140,31.99779,172.8,172.74,1.22681373]
[1641017023340,31.99779,172.8,172.77,4.0943138]
[1641017024142,31.99779,172.8,172.76,4.09438484]
[1641017024744,31.99779,172.8,172.74,1.22681373]
[1641017025444,31.99779,172.8,172.76,4.09440479]
[1641017026044,31.99779,172.8,172.74,1.22681373]
[1641017026843,31.99779,172.8,172.76,4.09437218]
[1641017027547,31.99779,172.8,172.77,4.09435439]
[1641017027745,25.42306435,172.8,172.77,4.09435439]
[1641017027946,25.42306435,172.8,172.74,1.22681373]
[1641017028747,25.42306435,172.8,172.77,4.09434441]
[1641017029247,25.42306435,172.8,172.76,4.09434441]
[1641017029850,25.42306435,172.8,172.77,4.09434441]
[1641017030850,29.51740065,172.8,172.75,4.09434441]
[1641017031551,25.42306435,172.8,172.78,4.09434441]
[1641017036459,25.42306435,172.8,172.77,4.09434441]
[1641017037062,54.91169586,172.92,172.79,3.0]
[1641017037262,49.1310149,172.92,172.83,3.0]
[1641017037462,27.66479,172.91,172.83,33.90679]
[1641017037663,49.1310149,172.92,172.83,33.90679]
[1641017038063,49.1310149,172.92,172.83,38.00113441]
[1641017038263,33.44480272,172.94,172.83,38.00113441]
[1641017038264,32.85016531,172.93,172.83,38.00113441]
[1641017038664,35.85016531,172.93,172.83,38.00113441]
[1641017038864,32.85016531,172.93,172.83,38.00113441]
[1641017039266,10.37071974,172.93,172.85,4.09434441]
[1641017040168,10.37071974,172.93,172.84,5.33212775]
[1641017041467,27.66479,172.91,172.84,5.33212775]
[1641017042269,27.66479,172.91,172.85,4.09434441]
[1641017044769,33.44597225,172.91,172.85,4.09434441]
[1641017044970,33.44597225,172.91,172.86,4.09434441]
[1641017045172,27.66479,172.91,172.86,4.09434441]
[1641017045372,27.66479,172.88,172.86,4.09434441]
[1641017045573,32.53479,172.88,172.86,4.09434441]
[1641017046371,32.53479,172.88,172.85,4.09434441]
[1641017046871,32.53479,172.88,172.83,4.09434441]
[1641017056785,10.38812429,172.87,172.82,4.09434441]
[1641017059287,32.53479,172.88,172.83,4.09434441]
[1641017059687,27.66479,172.85,172.83,4.09434441]
[1641017061889,27.66479,172.85,172.8,4.09434441]
[1641017062089,58.94179,172.85,172.8,4.09434441]
[1641017062291,3.0,172.84,172.8,4.09434441]
[1641017062493,3.0,172.81,172.8,4.09434441]
[1641017062689,3.0,172.83,172.8,4.09434441]
[1641017062890,7.733,172.84,172.8,4.09434441]
[1641017063089,7.733,172.84,172.78,1.23778334]
[1641017063291,3.0,172.83,172.77,4.09434441]
[1641017063490,15.12547473,172.84,172.77,4.09434441]
[1641017063691,27.66479,172.81,172.77,4.09434441]
[1641017063890,10.39247473,172.84,172.77,8.31334441]
[1641017065195,60.51495531,172.85,172.8,4.09434441]
[1641017065397,27.66479,172.85,172.8,4.09434441]
[1641017065795,27.66479,172.82,172.8,4.09434441]
[1641017066696,27.66479,172.82,172.79,4.09434441]
[1641017066898,27.66479,172.85,172.79,4.09434441]
[1641017067098,32.85016531,172.87,172.79,10.84034441]
[1641017067696,27.66479,172.86,172.8,4.09434441]
[1641017068396,27.66479,172.86,172.82,4.09434441]
[1641017070899,27.66479,172.86,172.78,12.28306318]
[1641017070900,27.66479,172.86,172.81,4.09434441]
[1641017071501,27.66479,172.86,172.82,4.09434441]
[1641017072201,27.66479,172.86,172.81,4.09434441]
[1641017073302,27.66479,172.86,172.82,4.09434441]
[1641017074201,27.66479,172.86,172.83,4.09434441]
[1641017076606,27.66479,172.86,172.82,4.09434441]
[1641017076807,32.64979,172.86,172.82,4.09434441]
[1641017077407,32.64979,172.86,172.83,4.09434441]
[1641017079109,32.64979,172.86,172.81,5.33212775]
[1641017080011,27.66479,172.83,172.81,5.33212775]
[1641017080910,27.66479,172.83,172.81,4.09434441]
[1641017081114,27.66479,172.83,172.79,4.09434441]
[1641017081814,27.66479,172.83,172.79,5.32905224]
[1641017082819,27.66479,172.83,172.79,4.09434441]
[1641017083017,27.66479,172.83,172.78,33.69674441]
[1641017083818,27.66479,172.83,172.79,5.32905233]
[1641017085520,27.66479,172.86,172.79,5.32905233]
[1641017089327,27.66479,172.86,172.8,4.09434441]
[1641017089927,27.66479,172.83,172.8,4.09434441]
[1641017090129,27.66479,172.83,172.79,5.32677253]
[1641017091529,27.66479,172.83,172.78,29.6024]
[1641017091729,27.66479,172.83,172.78,33.69474172]
[1641017092730,27.66479,172.83,172.78,29.6024]
[1641017093531,27.66479,172.83,172.78,33.69473026]
[1641017094330,27.66479,172.83,172.78,29.6024]
[1641017094532,27.66479,172.83,172.8,4.1088423]
[1641017095134,27.66479,172.83,172.81,4.10879448]
[1641017095834,27.66479,172.83,172.78,29.6024]
[1641017096132,27.66479,172.83,172.79,1.23959464]
[1641017096533,27.66479,172.83,172.8,4.10876153]
[1641017097333,27.66479,172.83,172.79,1.23959505]
[1641017097933,27.66479,172.83,172.78,29.6024]
[1641017098133,27.66479,172.83,172.8,4.10876405]
[1641017098535,3.0,172.82,172.76,12.28306318]
[1641017099736,46.24591635,172.82,172.7,19.56688061]
[1641017099937,27.66479,172.77,172.7,19.56688061]
[1641017100140,33.35879,172.77,172.7,19.56688061]
[1641017101339,3.0,172.76,172.69,30.5868]
[1641017101540,29.78262216,172.77,172.71,3.0]
[1641017102239,27.66479,172.74,172.72,3.0]
[1641017102440,27.66479,172.74,172.69,30.5868]
[1641017102639,27.66479,172.74,172.7,3.0]
[1641017102839,27.66479,172.74,172.71,3.0]
[1641017103040,27.66479,172.74,172.72,3.0]
[1641017103239,29.78262216,172.77,172.65,30.66479]
[1641017103441,29.78262216,172.77,172.71,3.0]
[1641017103644,29.78262216,172.77,172.73,3.0]
[1641017103842,24.08862216,172.77,172.73,3.0]
[1641017104243,24.08862216,172.77,172.74,3.0]
[1641017104641,27.66479,172.81,172.74,4.372]
[1641017104842,27.66479,172.81,172.75,3.0]
[1641017105441,27.66479,172.81,172.76,3.0]
[1641017105641,27.66479,172.81,172.71,31.8853]
[1641017105642,27.66479,172.81,172.78,3.0]
[1641017105842,27.66479,172.81,172.76,3.0]
[1641017106043,32.87279,172.81,172.76,3.0]
[1641017106943,32.87279,172.81,172.71,31.8853]
[1641017107444,32.87279,172.81,172.72,3.0]
[1641017107742,32.87279,172.81,172.76,3.0]
[1641017107943,32.87279,172.81,172.72,1.23034273]
[1641017108243,32.87279,172.81,172.76,3.0]
[1641017108542,32.87279,172.81,172.69,32.639]
[1641017108746,32.87279,172.81,172.74,3.0]
[1641017108943,32.87279,172.81,172.76,3.0]
[1641017109148,32.87279,172.81,172.75,3.0]
[1641017109444,32.87279,172.81,172.69,44.92206318]
[1641017109647,32.87279,172.81,172.74,3.0]
[1641017109843,32.87279,172.81,172.75,3.0]
[1641017110346,32.87279,172.81,172.76,1.23885085]
[1641017110846,32.87279,172.81,172.77,3.0]
[1641017111048,32.87279,172.81,172.76,4.23885085]
[1641017111252,27.66479,172.81,172.76,1.23885085]
[1641017111450,64.97296531,172.85,172.76,1.23885085]
[1641017111651,64.97296531,172.85,172.79,3.0]
[1641017111846,32.85016531,172.85,172.77,3.0]
[1641017112047,27.66479,172.82,172.76,1.23885085]
[1641017112946,27.66479,172.82,172.75,19.56520744]
[1641017113850,5.708,172.84,172.75,19.56520744]
[1641017114251,27.66479,172.85,172.75,19.56520744]
[1641017114850,27.66479,172.85,172.79,3.0]
[1641017115050,10.39295382,172.84,172.79,3.0]
[1641017115550,10.39295382,172.84,172.83,3.0]
[1641017116151,10.39295382,172.84,172.76,27.66479]
[1641017116353,10.39295382,172.84,172.81,3.0]
[1641017116552,5.921,172.86,172.81,3.0]
[1641017117152,5.921,172.86,172.84,3.0]
[1641017117651,5.921,172.86,172.82,1.23897813]
[1641017117854,10.39027145,172.87,172.82,1.23897813]
[1641017118252,10.39027145,172.87,172.81,3.0]
[1641017118452,10.39027145,172.87,172.79,41.72916318]
[1641017118855,10.39027145,172.87,172.8,1.23898398]
[1641017119055,10.39027145,172.87,172.82,3.0]
[1641017119255,10.39027145,172.87,172.8,1.23898398]
[1641017119456,10.39027145,172.87,172.84,3.0]
[1641017119655,27.66479,172.88,172.84,3.0]
[1641017119954,27.66479,172.88,172.83,1.23898398]
[1641017120157,27.66479,172.85,172.83,1.23898398]
[1641017120355,6.13,172.85,172.79,41.72916318]
[1641017120555,6.13,172.85,172.79,12.28306318]
[1641017120755,6.13,172.85,172.81,3.0]
[1641017121158,6.13,172.85,172.8,1.23897718]
[1641017121357,6.13,172.85,172.82,3.0]
[1641017121555,10.39030546,172.87,172.82,3.0]
[1641017123458,10.39030546,172.87,172.79,3.0]
[1641017123658,10.39030546,172.87,172.78,18.32586805]
[1641017124157,27.66479,172.81,172.78,18.32586805]
[1641017124358,34.17079,172.81,172.78,18.32586805]
[1641017124759,34.17079,172.81,172.78,12.28306318]
[1641017124958,34.17079,172.81,172.77,3.0]
[1641017129463,34.17079,172.81,172.78,3.0]
[1641017129964,27.66479,172.81,172.78,3.0]
[1641017132670,5.78569776,172.79,172.73,12.28306318]
[1641017132870,5.7846937,172.8,172.73,12.28306318]
[1641017133070,32.85016531,172.79,172.67,15.28306318]
[1641017133671,49.03383267,172.8,172.68,16.52180257]
[1641017134473,32.85016531,172.79,172.69,1.23873939]
[1641017134672,27.66479,172.72,172.69,1.23873939]
[1641017134872,5.465,172.72,172.69,1.23873939]
[1641017136274,5.465,172.72,172.68,12.28306318]
[1641017136476,5.465,172.72,172.68,15.28306318]
[1641017136676,27.66479,172.71,172.68,12.28306318]
[1641017137076,27.66479,172.71,172.68,15.28306318]
[1641017137278,27.66479,172.71,172.68,3.0]
[1641017137478,27.66479,172.71,172.67,15.28306318]
[1641017137979,27.66479,172.71,172.69,1.23873939]
[1641017138580,27.66479,172.71,172.68,1.23873939]
[1641017140582,33.85579,172.71,172.68,1.23873939]
[1641017140780,33.85579,172.71,172.68,4.23873939]
[1641017141282,33.85579,172.71,172.68,3.0]
[1641017141681,33.85579,172.71,172.65,12.28306318]
[1641017142181,33.85579,172.71,172.69,1.23873939]
[1641017142786,33.85579,172.71,172.65,12.28306318]
[1641017144086,33.85579,172.71,172.68,3.0]
[1641017144685,6.191,172.71,172.68,3.0]
[1641017144887,6.191,172.71,172.69,1.23873939]
[1641017145387,27.66479,172.74,172.69,1.23873939]
[1641017146691,27.66479,172.71,172.69,1.23873939]
[1641017146890,33.05679,172.71,172.69,1.23873939]
[1641017147290,5.392,172.71,172.69,1.23873939]
[1641017148894,33.05679,172.71,172.69,1.23873939]
[1641017149095,5.392,172.71,172.69,1.23873939]
[1641017152198,27.66479,172.74,172.69,1.23873939]
[1641017153498,27.66479,172.74,172.68,3.0]
[1641017154198,27.66479,172.77,172.7,3.0]
[1641017154399,32.4068,172.81,172.7,8.378]
[1641017154700,32.85016531,172.83,172.8,3.0]
[1641017155301,27.66479,172.82,172.76,5.118]